Cogmind - Beta 14 *** ADVENTURER MODE // 2024.10.16 @ 09:04:10 Player: Jefffff Result: Destroyed by B-75 Beast with Heavy Machine Gun Performance ------------- Evolutions (4) 2000 Regions Visited (11) 2200 Robots Destroyed (166) 830 Value Destroyed (7367) 7367 Prototype IDs (26) 520 Alien Tech Used (0) 0 Bonus (2902) 2902 TOTAL SCORE: 15819 Bonus ------- High Alert Combat Kills 1446 Follower Combat Kills 718 Entered Garrisons 200 Used RIF Installer 500 Aligned with FarCom 300 Friendly Fire -262 Cogmind --------- Core Integrity 0/850 Matter 213/300 Energy 191/200 System Corruption 16% Temperature Cool (14) Movement Walking (190) Ox1 Location -6/Extension Parts ------- > --- POWER (2) -------- Light Angular Momentum Engine Light Angular Momentum Engine > --- PROPULSION (4) --- Carbon-fiber Leg Carbon-fiber Leg Carbon-fiber Leg Flexi-carbon Leg > --- UTILITY (6) ------ Coolant Injector High-capacity Storage Unit Advanced Terrain Scan Processor Kinecellerator Improved Light Armor Plating Hacking Suite > --- WEAPON (3) ------- Plasma Rifle Minigun Scythe > --- INVENTORY (20) --- Light Angular Momentum Engine Light Angular Momentum Engine Light Angular Momentum Engine Light Angular Momentum Engine Medium Treads Medium Treads Improved Hover Unit Gravmag System Gravmag System Gravmag Array Advanced Heat Sink Advanced Heat Sink Advanced Heat Sink Huge Storage Unit Heavy Laser Heavy Machine Gun Heavy Machine Gun Remote Datajack Peak State ------------ > --- POWER ------------ Fission Core Light Fission Core > --- PROPULSION ------- Carbon-fiber Leg Carbon-fiber Leg Myomer Leg Myomer Leg > --- UTILITY ---------- Coolant Injector High-capacity Storage Unit Advanced Terrain Scan Processor Kinecellerator Improved Light Armor Plating Hacking Suite > --- WEAPON ----------- Plasma Rifle Minigun Scythe > --- INVENTORY -------- Light Angular Momentum Engine Light Angular Momentum Engine Light Angular Momentum Engine Light Angular Momentum Engine Medium Treads Medium Treads Carbon-fiber Leg Improved Hover Unit Gravmag System Gravmag System Gravmag Array Advanced Heat Sink Advanced Heat Sink Advanced Heat Sink Huge Storage Unit Heavy Laser Heavy Machine Gun Heavy Machine Gun Remote Datajack [Rating: 68] Favorites ----------- Power Heavy Ion Engine Engine Heavy Ion Engine Power Core Light Nuclear Core Propulsion Carbon-fiber Leg Treads Light Treads Leg Carbon-fiber Leg Wheel Wheel Utility High-capacity Storage Unit Device Improved Heat Sink Storage High-capacity Storage Unit Processor Advanced Targeting Computer Hackware System Shield Protection Improved Medium Armor Plating Weapon Heavy Assault Rifle Energy Gun Plasma Rifle Ballistic Gun Heavy Assault Rifle Ballistic Cannon Gauss Cannon Launcher Grenade Launcher Impact Weapon Power Maul Slashing Weapon Scythe Build | -11 -10 -9 -9 -9 -8 -8 -8 -7 -7 -6 -6 ------- Run | Yrd Mat Mat Min Exi Min Mat Gar Fac Low Fac Ext Slots Evolved 8 | . . 2 . . . 2 . 2 . 2 . Power 1 | . . . . . . . . 1 . . . Propulsion 2 | . . 2 . . . . . . . . . Utility 4 | . . . . . . 2 . 1 . 1 . Weapon 1 | . . . . . . . . . . 1 . Parts Attached 228 | 9 10 23 6 1 . 2 52 53 1 43 28 Power 28 | 1 1 2 . . . . 5 10 . 3 6 Engine 21 | 1 . 2 . . . . 3 9 . 3 3 Core 7 | . 1 . . . . . 2 1 . . 3 Reactor . | . . . . . . . . . . . . Propulsion 96 | 5 4 12 . . . . 20 17 . 24 14 Treads 21 | . . 8 . . . . 9 1 . 2 1 Leg 65 | 3 4 4 . . . . 11 16 . 14 13 Wheel 10 | 2 . . . . . . . . . 8 . Hover . | . . . . . . . . . . . . Flight . | . . . . . . . . . . . . Utility 54 | 1 4 3 . . . 2 14 12 1 11 6 Device 24 | . 1 3 . . . 2 5 5 . 6 2 Storage 6 | 1 3 . . . . . . . . 1 1 Processor 8 | . . . . . . . 2 2 1 2 1 Hackware 2 | . . . . . . . . . . 1 1 Protection 14 | . . . . . . . 7 5 . 1 1 Artifact . | . . . . . . . . . . . . Weapon 50 | 2 1 6 6 1 . . 13 14 . 5 2 Energy Gun 12 | 1 . 3 1 . . . 3 3 . . 1 Energy Cannon . | . . . . . . . . . . . . Ballistic Gun 14 | 1 1 3 1 . . . 7 . . . 1 Ballistic Cannon 6 | . . . . . . . . 2 . 4 . Launcher 4 | . . . 3 1 . . . . . . . Special Weapon . | . . . . . . . . . . . . Impact Weapon 6 | . . . 1 . . . 1 4 . . . Slashing Weapon 8 | . . . . . . . 2 5 . 1 . Piercing Weapon . | . . . . . . . . . . . . Special Melee Weapon . | . . . . . . . . . . . . Unidentified Prototypes 1 | . . 1 . . . . . . . . . Corrupted Parts 1 | . . . . . . . . 1 . . . System Corruption 3 | . . . . . . . . 3 . . . Parts Lost 71 | . 1 7 . . . . 17 18 1 24 3 Power 11 | . 1 1 . . . . 2 4 . 2 1 Propulsion 34 | . . 4 . . . . 7 7 . 14 2 Utility 20 | . . 1 . . . . 6 6 1 6 . Weapon 6 | . . 1 . . . . 2 1 . 2 . Highest Loss Streak 12 | . 1 4 . . . . 4 11 1 12 1 To Critical Strikes . | . . . . . . . . . . . . Average Slot Usage (%) 92 | . 92 97 100 100 100 100 95 96 99 79 63 Engine 9 | . 5 7 11 11 11 9 8 13 15 8 1 Core 1 | . 7 3 . . . . . . . . 9 Treads 14 | . . 30 44 44 44 36 12 . . . . Leg 17 | . 28 12 . . . . 20 29 30 18 21 Device 11 | . 7 10 11 11 11 27 14 10 4 4 7 Storage 8 | . 14 11 11 11 11 9 9 7 7 5 4 Processor 6 | . . . . . . . 5 13 17 17 1 Protection 3 | . . . . . . . 6 4 7 1 1 Energy Gun 2 | . 2 8 2 . . . 3 1 . . 4 Ballistic Gun 6 | . 25 12 7 11 11 9 8 1 . . 1 Ballistic Cannon 1 | . . . . . . . . 2 . 5 . Launcher 2 | . . . 12 11 11 9 . . . . . Slashing Weapon 3 | . . . . . . . 4 4 15 9 6 Peak Build Rating 68 | 6 12 18 18 17 17 21 45 48 46 55 68 Average Rating 31 | 3 9 16 16 17 17 20 34 40 45 43 41 On Entrance 20 | . 6 12 18 17 17 17 21 37 46 46 4 Naked Turns 22 | . . . . . . . . . . 22 . Heaviest Build 94 | 10 48 55 55 55 55 58 67 94 72 79 75 Greatest Support 100 | 20 20 80 80 80 80 80 100 61 61 65 80 Greatest Overweight (x) 21 | . 2 5 . . . . 19 5 1 21 1 Average Overweight (x) . | . . . . . . . . 1 1 1 . Largest Inventory Capacity 20 | 8 20 20 20 20 20 20 20 20 20 20 20 Average Capacity 19 | 5 14 20 20 20 20 20 20 20 20 18 16 Most Carried 20 | 5 17 20 20 20 20 19 20 20 20 20 20 Average Carried 18 | 3 11 18 19 19 20 18 19 19 19 17 11 Final Capacity 20 | 8 20 20 20 20 20 20 20 20 20 5 20 Final Carried 20 | 4 17 20 20 20 20 19 20 20 20 5 19 Class Distribution -------------------- 68% | Scavenger-Mutant 17% | Mutant 6% | Scavenger-Gladiator 4% | Hacker-Mutant Dominant Class ---------------- Scavenger-Mutant | -10/Materials Scavenger-Mutant | -9/Materials Scavenger-Mutant | -9/Mines Scavenger-Mutant | -9/Exiles Scavenger-Mutant | -8/Mines Scavenger-Mutant | -8/Materials Scavenger-Mutant | -8/Garrison Scavenger-Mutant | -7/Factory Mutant | -7/Lower Caves Mutant | -6/Factory Mutant | -6/Extension Resources | -11 -10 -9 -9 -9 -8 -8 -8 -7 -7 -6 -6 ----------- Run | Yrd Mat Mat Min Exi Min Mat Gar Fac Low Fac Ext Matter Collected 3930 | 198 245 411 260 . . 37 901 734 121 296 727 Remotely . | . . . . . . . . . . . . Salvage Created 6926 | . 478 1239 217 . . 107 1688 1163 249 772 1013 Parts 334 | . 34 61 15 . . 11 101 38 7 34 33 Haulers Intercepted 5 | . 1 2 . . . . . 1 . . 1 Recyclers Shooed 4 | . . . . . . . . 2 . . 2 Parts Field Recycled . | . . . . . . . . . . . . Retrieved Matter . | . . . . . . . . . . . . Parts Self-Destructed 15 | . . . . . . . . . 15 . . Prevented . | . . . . . . . . . . . . Kills | -11 -10 -9 -9 -9 -8 -8 -8 -7 -7 -6 -6 ------- Run | Yrd Mat Mat Min Exi Min Mat Gar Fac Low Fac Ext Combat Hostiles Destroyed 137 | . 11 20 10 . . 3 41 24 5 11 12 Melee 39 | . . . 1 . . . 14 11 5 6 2 Guns 73 | . 11 20 8 . . 2 23 1 . . 8 Cannons 8 | . . . . . . . . 3 . 5 . AOE 4 | . . . 1 . . 1 2 . . . . Classes Destroyed 21 | . 4 4 2 . . 2 4 3 . 1 1 Worker 8 | . . 3 . . . . . 3 . 2 . Builder 5 | . . . . . . 1 . . . 4 . Tunneler 2 | . . 2 . . . . . . . . . Hauler 5 | . 1 2 . . . . . 1 . . 1 Recycler 3 | . . 1 . . . . . . . 1 1 Mechanic 1 | . . . . . . . . . . 1 . Operator 1 | . . . . . . . . . . . 1 Watcher 3 | . 1 1 . . . 1 . . . . . Swarmer 22 | . 3 . 5 . . 2 10 . 2 . . Saboteur 1 | . . . . . . . 1 . . . . Grunt 72 | . 8 16 4 . . . 12 14 2 8 8 Brawler 4 | . . . . . . . 1 2 . . 1 Duelist 4 | . . . . . . . 2 1 . 1 . Protector 2 | . . . . . . . . 2 . . . Sentry 15 | . . 4 . . . . 6 1 1 . 3 Specialist 1 | . . . . . . . . 1 . . . Hunter 10 | . . . . . . 1 8 1 . . . Programmer 5 | . . . . . . . . 3 . 2 . Behemoth 1 | . . . . . . . 1 . . . . Zionite 1 | . . . 1 . . . . . . . . Assembled 1 | . . . 1 . . . . . . . . Best Kill Streak 19 | . 6 19 3 . . 5 6 4 5 5 3 Combat Bots Only 9 | . 6 9 3 . . 3 6 4 5 3 3 Max Kills in Single Turn 2 | . 1 2 2 . . 1 2 1 1 1 1 Gunslinging . | . . . . . . . . . . . . Exploded 2 | . . . 1 . . 1 2 . . . . Melee 1 | . . . 1 . . . 1 1 1 1 1 Uniques/NPCs Destroyed . | . . . . . . . . . . . . Combat | -11 -10 -9 -9 -9 -8 -8 -8 -7 -7 -6 -6 -------- Run | Yrd Mat Mat Min Exi Min Mat Gar Fac Low Fac Ext Hostile Shots Fired 1324 | . 74 161 55 . 2 10 273 328 56 247 118 Missed 359 | . 23 57 14 . 1 5 56 87 12 62 42 Damage Taken 12650 | . 433 1023 460 . 10 53 2692 3253 537 3398 791 Core 2104 | . 107 169 69 . . 7 292 537 56 756 111 Absorbed by Shields 36 | . . . . . . . 24 . . . 12 Redirected to Shielding 57 | . . . . . . . 57 . . . . Ignored by Resistances 3658 | . 134 305 135 . 3 15 878 1033 156 761 238 Regen/Repaired (Parts) 321 | . . 170 . . . . . 85 . 66 . Core Remaining (%) 51 | 100 57 . . . 40 . 45 . 15 . . Volleys Fired 392 | . 48 85 25 . . 10 113 34 . 19 58 Largest 2 | . 2 2 2 . . 2 2 2 . 2 2 Hottest 128 | . 60 88 88 . . 53 103 128 . 96 100 Shots Fired 650 | . 95 153 48 . . 14 151 56 . 37 96 Gun 563 | . 95 153 38 . . 10 149 22 . . 96 Cannon 71 | . . . . . . . . 34 . 37 . Launcher 16 | . . . 10 . . 4 2 . . . . Special . | . . . . . . . . . . . . Kinetic 431 | . 73 102 20 . . 10 99 48 . 37 42 Thermal 203 | . 22 51 18 . . . 50 8 . . 54 Explosive 16 | . . . 10 . . 4 2 . . . . Electromagnetic . | . . . . . . . . . . . . Robot Hit Streak 48 | . 16 37 26 . . 9 48 31 . 22 34 Robot Miss Streak 4 | . 1 2 2 . . 1 1 4 . 2 2 Penetration Max 1 | . . . . . . . 1 1 . 1 . Secondary Targets 10 | . 2 3 3 . . . 1 . . . 1 Max Gunslinging Chain 1 | . 1 1 1 . . . 1 . . . 1 Shots Hit Robots 687 | . 75 129 35 . . 12 158 107 10 77 84 Core Hits 271 | . 30 46 18 . . 8 67 32 6 31 33 Critical Kills 5 | . . . . . . . 1 4 . . . Critical Parts Destroyed 11 | . . 1 . . . . 1 9 . . . Critical Strikes 57 | . . 6 . . . . 10 19 1 15 6 Burn 10 | . . 5 . . . . 2 . . . 3 Destroy 3 | . . 1 . . . . 2 . . . . Blast 8 | . . . . . . . . 2 . 6 . Smash 13 | . . . . . . . . 13 . . . Sever 23 | . . . . . . . 6 4 1 9 3 Melee Attacks 237 | . . . 2 . . . 50 87 14 72 12 Thermal 2 | . . . . . . . 2 . . . . Impact 62 | . . . 2 . . . 1 59 . . . Slashing 173 | . . . . . . . 47 28 14 72 12 Piercing . | . . . . . . . . . . . . Sneak Attacks 19 | . . . . . . . 3 6 . 5 5 Combat Hostiles 5 | . . . . . . . 3 . . . 2 Follow-up Attacks 15 | . . . . . . . . 12 1 2 . Damage Inflicted 16201 | . 681 1815 903 . . 256 3518 4176 312 2486 2054 Guns 7167 | . 677 1815 448 . . 102 2208 347 . . 1570 Cannons 1775 | . . . . . . . . 851 . 924 . Explosions 648 | . . . 396 . . 154 98 . . . . Melee 6607 | . . . 59 . . . 1212 2978 312 1562 484 Ramming 4 | . 4 . . . . . . . . . . Kinetic 5925 | . 480 1166 231 . . 102 1384 1064 . 924 574 Thermal 3017 | . 197 649 217 . . . 824 134 . . 996 Explosive 648 | . . . 396 . . 154 98 . . . . Electromagnetic . | . . . . . . . . . . . . Impact 2544 | . . . 59 . . . . 2485 . . . Slashing 4063 | . . . . . . . 1212 493 312 1562 484 Piercing . | . . . . . . . . . . . . Highest Corruption 16 | . . . . . . . . 12 7 16 16 Average Corruption 11 | . . . . . . . . 8 7 10 16 Corruption Purged 7 | . . . . . . . . 5 . 2 . Corruption Blocked . | . . . . . . . . . . . . Effects 122 | . . . . . . . . 47 9 19 47 Message Errors 30 | . . . . . . . . 10 . 7 13 Matter Fused 31 | . . . . . . . . 17 1 4 9 Heat Flow Errors 16 | . . . . . . . . 5 3 2 6 Energy Discharges 15 | . . . . . . . . 5 2 1 7 Parts Rejected 1 | . . . . . . . . 1 . . . Data Loss (minor) 12 | . . . . . . . . 3 3 1 5 Data Loss (major) 7 | . . . . . . . . 5 . 1 1 Misfires 2 | . . . . . . . . . . 1 1 Alerts 2 | . . . . . . . . 1 . . 1 Weapon Failures 6 | . . . . . . . . . . 2 4 Overload Shots . | . . . . . . . . . . . . Overflow Damage 736 | . . . 25 . . . 28 562 12 109 . Projectiles 44 | . . . . . . . . 11 . 33 . Explosions . | . . . . . . . . . . . . Melee 692 | . . . 25 . . . 28 551 12 76 . Knockbacks 33 | . . . . . . . . 18 . 15 . Impact 11 | . . . . . . . . 11 . . . Kinetic 16 | . . . . . . . . 5 . 11 . Secondary 6 | . . . . . . . . 2 . 4 . Self-Inflicted Damage 99 | . . . 99 . . . . . . . . Shots 4 | . . . 4 . . . . . . . . Rammed . | . . . . . . . . . . . . Targets Rammed 1 | . 1 . . . . . . . . . . Kicked 1 | . 1 . . . . . . . . . . Crushed . | . . . . . . . . . . . . Highest Temperature 350 | . 192 350 . . . . 20 243 264 304 285 Average Temperature 108 | . 62 171 . . . . 5 68 109 106 112 Received Heat Transfer 5491 | . 258 708 87 . 9 . 886 1635 99 1539 270 Effects 1 | . . 1 . . . . . . . . . Energy Bleed 1 | . . 1 . . . . . . . . . Siege Activations . | . . . . . . . . . . . . Robots Corrupted 9 | . . . . . . . . 9 . . . Combat Hostiles 9 | . . . . . . . . 9 . . . Parts Fried 15 | . . . . . . . . 15 . . . Impact Corruptions 20 | . . . 1 . . . . 19 . . . Robots Melted 4 | . . . . . . . 2 . . . 2 Combat Hostiles 4 | . . . . . . . 2 . . . 2 Parts Melted 22 | . . 3 2 . . . 8 1 . . 8 Heat Transferred 7843 | . 450 1998 555 . . . 2064 226 . . 2550 Parts Sabotaged 6 | . . . . . . . 6 . . . . Parts Stolen . | . . . . . . . . . . . . Parts Stripped . | . . . . . . . . . . . . Power Chain Reactions . | . . . . . . . . . . . . Alert | -11 -10 -9 -9 -9 -8 -8 -8 -7 -7 -6 -6 ------- Run | Yrd Mat Mat Min Exi Min Mat Gar Fac Low Fac Ext Peak Influence 2820 | . 234 420 302 . . 101 2820 1376 . 239 186 Initial 1283 | . . 21 80 . . . 57 1283 . 239 68 Average 656 | . 78 264 100 . . 16 1387 996 . 101 70 Maximum Alert Level 5 | . 1 2 1 . . . 5 4 . 1 . Low Security (%) 40 | 100 91 21 83 . 100 100 5 . . 74 100 Level 1 13 | . 8 71 16 . . . 6 1 . 25 . Level 2 7 | . . 6 . . . . 11 17 . . . Level 3 12 | . . . . . . . 15 36 . . . Level 4 15 | . . . . . . . 22 44 . . . Level 5 10 | . . . . . . . 37 . . . . High Security . | . . . . . . . . . . . . Max Security . | . . . . . . . . . . . . Squads Dispatched 27 | . 2 3 . . . 1 . 15 . 5 1 Investigation 7 | . 2 1 . . . . . 2 . 2 . Extermination 7 | . . . . . . . . 5 . 2 . Reinforcement 6 | . . 2 . . . . . 2 . 1 1 Assault 3 | . . . . . . . . 3 . . . Garrison 4 | . . . . . . 1 . 3 . . . Intercept . | . . . . . . . . . . . . Searches Triggered . | . . . . . . . . . . . . Construction Impeded 2 | . . . . . . . . 1 . 1 . Haulers Reinforced 1 | . . . . . . . . 1 . . . Active Scanning Responses . | . . . . . . . . . . . . Cargo Convoy Interrupts . | . . . . . . . . . . . . Stealth | -11 -10 -9 -9 -9 -8 -8 -8 -7 -7 -6 -6 --------- Run | Yrd Mat Mat Min Exi Min Mat Gar Fac Low Fac Ext Distress Signals 5 | . . 1 . . . 1 . 2 . . 1 Communications Jammed . | . . . . . . . . . . . . Distress Signals . | . . . . . . . . . . . . Times Spotted 206 | . 16 26 12 . 3 4 46 44 10 22 23 Peak Tracking Total 9 | . 6 6 3 . 3 2 9 9 5 8 5 Tactical Retreats 18 | . . 2 . . . . 4 4 1 3 4 Traps | -11 -10 -9 -9 -9 -8 -8 -8 -7 -7 -6 -6 ------- Run | Yrd Mat Mat Min Exi Min Mat Gar Fac Low Fac Ext Traps Triggered 19 | . 2 1 . . . . 10 1 . 1 4 Indirectly . | . . . . . . . . . . . . Trap Hack Attempts . | . . . . . . . . . . . . Triggered . | . . . . . . . . . . . . Disarmed . | . . . . . . . . . . . . Reprogrammed . | . . . . . . . . . . . . Reused . | . . . . . . . . . . . . Traps Extracted . | . . . . . . . . . . . . Installed . | . . . . . . . . . . . . Triggered 2 | . . . . . . . . . 2 . . Machines | -11 -10 -9 -9 -9 -8 -8 -8 -7 -7 -6 -6 ---------- Run | Yrd Mat Mat Min Exi Min Mat Gar Fac Low Fac Ext Machines Disabled 13 | . . . 1 . . . 10 . . . 2 Max in Single Turn 2 | . . . . . . . 2 . . . 1 Garrison Relay 6 | . . . . . . . 6 . . . . Phase Generator 1 | . . . . . . . 1 . . . . Machines Repaired . | . . . . . . . . . . . . Machines Dismantled . | . . . . . . . . . . . . Machines Sabotaged . | . . . . . . . . . . . . Overloaded Fab Kills . | . . . . . . . . . . . . Hacking | -11 -10 -9 -9 -9 -8 -8 -8 -7 -7 -6 -6 --------- Run | Yrd Mat Mat Min Exi Min Mat Gar Fac Low Fac Ext Machines Accessed 27 | . 3 2 . 1 . 2 4 9 . 4 2 Terminals 20 | . 3 1 . . . 1 4 7 . 2 2 Fabricators 2 | . . . . . . . . 1 . 1 . Repair Stations 3 | . . 1 . . . . . 1 . 1 . Recycling Units . | . . . . . . . . . . . . Scanalyzers . | . . . . . . . . . . . . Garrison Access 1 | . . . . . . 1 . . . . . Total Hacks 80 | . 11 11 . 1 . 5 5 30 . 11 6 Successful 53 | . 6 10 . 1 . 4 4 17 . 7 4 Failed 27 | . 5 1 . . . 1 1 13 . 4 2 Catastrophic 4 | . . . . . . . . 1 . 1 2 Database Lockouts . | . . . . . . . . . . . . Manual 55 | . 9 3 . 1 . 4 . 27 . 6 5 Terminals 62 | . 11 3 . . . 4 5 27 . 6 6 Fabricators 3 | . . . . . . . . 1 . 2 . Repair Stations 13 | . . 8 . . . . . 2 . 3 . Recycling Units . | . . . . . . . . . . . . Scanalyzers . | . . . . . . . . . . . . Garrison Access 1 | . . . . . . 1 . . . . . Terminal Hacks 16 | . 3 1 . 1 . . 4 4 . . 3 Robot Analysis 1 | . . . . . . . . 1 . . . Prototype ID Bank 1 | . 1 . . . . . . . . . . Open Door 2 | . . . . . . . 1 . . . 1 Emergency Access Points 1 | . . . . . . . 1 . . . . Terminal Index 3 | . 1 1 . . . . . 1 . . . Unreport Threat 5 | . 1 . . . . . . 2 . . 2 Garrison Registry 1 | . . . . . . . 1 . . . . Patrol Navigation 1 | . . . . . . . 1 . . . . Derelict Proto ID Bank 1 | . . . . 1 . . . . . . . Fabricator Hacks 2 | . . . . . . . . 1 . 1 . Network Status 2 | . . . . . . . . 1 . 1 . Repair Station Hacks 12 | . . 8 . . . . . 2 . 2 . Scan Component 6 | . . 4 . . . . . 1 . 1 . Repair 6 | . . 4 . . . . . 1 . 1 . Recycling Unit Hacks . | . . . . . . . . . . . . Scanalyzer . | . . . . . . . . . . . . Garrison Access Hacks 1 | . . . . . . 1 . . . . . Unlock Access 1 | . . . . . . 1 . . . . . Unauthorized Hacks 22 | . 3 1 . . . 3 . 10 . 4 1 Terminals 22 | . 3 1 . . . 3 . 10 . 4 1 Track 2 | . . . . . . . . 1 . 1 . Assimilate 2 | . . . . . . 1 . 1 . . . Botnet 15 | . 3 1 . . . 1 . 7 . 2 1 Operators 3 | . . . . . . 1 . 1 . 1 . Fabricators . | . . . . . . . . . . . . Repair Stations . | . . . . . . . . . . . . Recycling Units . | . . . . . . . . . . . . Scanalyzers . | . . . . . . . . . . . . Garrison Access . | . . . . . . . . . . . . Data Cores Recovered . | . . . . . . . . . . . . Used . | . . . . . . . . . . . . Hacking Detections 22 | . 3 2 . . . 1 2 8 . 4 2 Full Trace Events 2 | . . . . . . . . 1 . 1 . Feedback Events . | . . . . . . . . . . . . Feedback Blocked . | . . . . . . . . . . . . Robot Schematics Acquired . | . . . . . . . . . . . . Robots Built . | . . . . . . . . . . . . Authchips . | . . . . . . . . . . . . Time . | . . . . . . . . . . . . Total Robot Build Rating . | . . . . . . . . . . . . Part Schematics Acquired . | . . . . . . . . . . . . Parts Built . | . . . . . . . . . . . . Authchips . | . . . . . . . . . . . . Time . | . . . . . . . . . . . . Total Part Build Rating . | . . . . . . . . . . . . Parts Repaired 6 | . . 4 . . . . . 1 . 1 . Time 156 | . . 122 . . . . . 12 . 22 . Parts Recycled . | . . . . . . . . . . . . Recycled Matter . | . . . . . . . . . . . . Retrieved Matter . | . . . . . . . . . . . . Retrieved Components . | . . . . . . . . . . . . Parts Scanalyzed . | . . . . . . . . . . . . Part Schematics Acquired . | . . . . . . . . . . . . Parts Damaged . | . . . . . . . . . . . . Bothacking | -11 -10 -9 -9 -9 -8 -8 -8 -7 -7 -6 -6 ------------ Run | Yrd Mat Mat Min Exi Min Mat Gar Fac Low Fac Ext Used RIF Installer 1 | . . . . . . . 1 . . . . Robots Hacked . | . . . . . . . . . . . . Non-combat . | . . . . . . . . . . . . Combat . | . . . . . . . . . . . . Robot Hacks Applied . | . . . . . . . . . . . . Relay Couplers Released 23 | . . . . . . . 23 . . . . Machine Destruction 23 | . . . . . . . 23 . . . . Fabnet Peak Effective % . | . . . . . . . . . . . . Robots Rewired 14 | . . . . . . . 6 . 1 . 7 Allies Hacked . | . . . . . . . . . . . . Hacks Repelled . | . . . . . . . . . . . . Allies | -11 -10 -9 -9 -9 -8 -8 -8 -7 -7 -6 -6 -------- Run | Yrd Mat Mat Min Exi Min Mat Gar Fac Low Fac Ext Total Allies 20 | . . . 2 . . . 6 1 2 . 9 Largest Group 6 | . . . 2 1 . . 4 5 2 1 6 Highest-Rated Group 171 | . . . 50 31 . . 160 170 171 30 152 Highest-Rated Ally 141 | . . . 31 31 . . 40 40 141 30 31 Total Orders 1 | . . . . . . . . . . . 1 ROAM 1 | . . . . . . . . . . . 1 Ally Attacks 145 | . . . 5 . . . 7 42 11 4 76 Total Damage 3413 | . . . 83 . . . 121 1224 619 84 1282 Kills 26 | . . . 1 . . . . 12 5 . 8 Allies Corrupted 1 | . . . . . . . 1 . . . . Allies Melted . | . . . . . . . . . . . . Intel | -11 -10 -9 -9 -9 -8 -8 -8 -7 -7 -6 -6 ------- Run | Yrd Mat Mat Min Exi Min Mat Gar Fac Low Fac Ext Robot Analysis Total 1 | . . . . . . . . 1 . . . Derelict Logs Recovered 2 | . . . 2 . . . . . . . . Drone Launches . | . . . . . . . . . . . . Drone Recoveries . | . . . . . . . . . . . . Exploration | -11 -10 -9 -9 -9 -8 -8 -8 -7 -7 -6 -6 ------------- Run | Yrd Mat Mat Min Exi Min Mat Gar Fac Low Fac Ext Turns Passed 14502 | 71 779 1078 1349 1107 103 471 3619 2838 318 1576 1193 Spaces Moved 6449 | 47 343 397 725 688 65 136 1717 1069 144 558 560 Core 287 | 3 . . . . . . 2 . . 131 151 Treads 2623 | . . 314 725 688 65 136 690 . . 5 . Legs 3513 | 36 343 83 . . . . 1025 1069 144 404 409 Wheels 26 | 8 . . . . . . . . . 18 . Hover . | . . . . . . . . . . . . Flight . | . . . . . . . . . . . . Fastest Speed 50 | 50 120 160 160 160 160 160 120 190 190 50 50 Average Speed 168 | 108 177 169 160 160 160 160 174 191 190 176 119 Slowest Speed 1100 | 120 260 470 160 160 160 160 1000 470 190 1100 190 Overloaded Moves . | . . . . . . . . . . . . Propulsion Burnouts . | . . . . . . . . . . . . Robots Hopped . | . . . . . . . . . . . . Cave-ins Triggered 2 | . . . . . . . . . . 2 . Exploration Rate (%) 43 | 4 62 36 91 92 26 11 92 24 30 13 38 Regions Visited 11 Branch Regions 5 Pre-discovered Areas 2 | . . . 2 . . . . . . . . Known Exits Taken 2 | . . . . . . 1 . 1 . . . Unknown Exits Taken 8 | 1 1 1 1 1 1 . . . 1 1 . Scrap Searched 1 | . . . . . . . . . 1 . . Spaces Dug 73 | . . . 30 . . . . 19 . 24 . Terrain Destroyed 292 | . . . 67 . . 12 162 22 . 29 . Melee 42 | . . . . . . . . 18 . 24 . Projectile 9 | . . . . . . . . 4 . 5 . AOE 241 | . . . 67 . . 12 162 . . . . Terrain Rammed . | . . . . . . . . . . . . Walls Destroyed . | . . . . . . . . . . . . Machines Disabled . | . . . . . . . . . . . . Actions | -11 -10 -9 -9 -9 -8 -8 -8 -7 -7 -6 -6 --------- Run | Yrd Mat Mat Min Exi Min Mat Gar Fac Low Fac Ext Total 9122 | 65 439 662 862 694 64 375 2119 1677 172 1015 978 Wait 1456 | . 10 125 100 . . 226 76 384 13 292 230 Move 6438 | 46 342 396 724 687 64 136 1716 1068 143 556 560 Hop . | . . . . . . . . . . . . Pick Up 153 | 9 17 18 2 1 . 1 31 31 1 16 26 Fast Attach 56 | 2 4 6 . . . . 11 11 . 12 10 Attach 66 | 4 1 7 . . . 2 13 14 1 16 8 Detach 1 | . . . . . . . . . . 1 . Swap 106 | 3 5 10 6 1 . . 28 28 . 15 10 Drop 122 | 1 11 15 3 1 . . 32 31 . 17 11 Fire 392 | . 48 85 25 . . 10 113 34 . 19 58 Melee 216 | . . . 2 . . . 50 71 11 70 12 Ram . | . . . . . . . . . . . . Kick 1 | . 1 . . . . . . . . . . Crush . | . . . . . . . . . . . . Escape Stasis 58 | . . . . . . . 32 5 . 1 20 Rewire 57 | . . . . 4 . . 17 . 3 . 33 Trap . | . . . . . . . . . . . . Miscellaneous . | . . . . . . . . . . . . Route ------- -11/Scrapyard -10/Materials (discovered 2 exits: *Mat / [*Min]) -9/Materials (discovered 2 exits: *Mat / [*Min]) -9/Mines (discovered 3 exits: *Mat x2 / *Exi) -9/Exiles (discovered 2 exits: [*Min x2]) -8/Mines -8/Materials -8/Garrison (discovered 3 exits: *Fac x3) -7/Factory (discovered 2 exits: *Fac / *Low) -7/Lower Caves -6/Factory -6/Extension History --------- Turn | Location | Event 9 | -11/Scrapyard | Discovered new exit (range 15) 72 | -11/Scrapyard | Entered Materials 306 | -10/Materials | Build established: Mutant 310 | -10/Materials | Discovered new exit (range 15) 721 | -10/Materials | Build established: Scavenger-Mutant 744 | -10/Materials | Discovered new exit (range 12) 851 | -10/Materials | Entered another Materials area 851 | -9/Materials | Evolved 2 slots: Propulsion x2 1135 | -9/Materials | Destroyed 9 combat bots 1198 | -9/Materials | Lost 4 parts (1p3n) 1556 | -9/Materials | Discovered new exit (range 6) 1761 | -9/Materials | Discovered new exit (range 16) 1812 | -9/Materials | Repaired Imp. Heat Sink 1845 | -9/Materials | Repaired Hvy. Assault Rifle 1873 | -9/Materials | Repaired Lgt. Treads 1900 | -9/Materials | Repaired Lgt. Treads 1929 | -9/Materials | Entered Mines 1930 | -9/Mines | Learned location of Storage (-7) 2014 | -9/Mines | Found a hidden stash of uninstalled traps 2100 | -9/Mines | Core integrity fell below 50% 2162 | -9/Mines | Assembled infested the area 2208 | -9/Mines | Met 8R-AWN 2432 | -9/Mines | Discovered new exit (range 7) 2584 | -9/Mines | Discovered new exit (range 2) 3246 | -9/Mines | Discovered new exit (range 5) 3278 | -9/Mines | Entered Exiles 3278 | -9/Exiles | Accompanied by 1 ally 3308 | -9/Exiles | Led the pair of lost Derelicts to a safe place 3317 | -9/Exiles | Welcomed by 8R-AWN 3344 | -9/Exiles | Met EX-HEX 3392 | -9/Exiles | Met EX-BIN 3411 | -9/Exiles | Aligned with FarCom system 3413 | -9/Exiles | Given EX-Vault access code 3453 | -9/Exiles | Opened EX-Vault 3463 | -9/Exiles | Found 0b10 Alert Chip 3499 | -9/Exiles | Warned to stay clear of 0b10 Research branches 3542 | -9/Exiles | Met EX-DEC 3691 | -9/Exiles | Discovered new exit (range 10) 3812 | -9/Exiles | Visited The Gauntlet 4092 | -9/Exiles | Learned about 8R-AWN's background 4133 | -9/Exiles | Discovered new exit (range 14) 4385 | -9/Exiles | Left Exiles lab with 0b10 Alert Chip 4385 | -9/Exiles | Entered Mines 4483 | -8/Mines | Discovered new exit (range 5) 4488 | -8/Mines | Entered Materials 4488 | -8/Materials | Evolved 2 slots: Utility x2 4888 | -8/Materials | Garrison activated, responded to threat 4959 | -8/Materials | Identified exit to Garrison 4959 | -8/Materials | Entered Garrison 5029 | -8/Garrison | Triggered checkpoint 5078 | -8/Garrison | Garrison Relay disabled 5207 | -8/Garrison | Lost 3 parts (2n1w) 5311 | -8/Garrison | Triggered checkpoint 5361 | -8/Garrison | Triggered checkpoint 5422 | -8/Garrison | Phase Generator disabled 5429 | -8/Garrison | Spotted B-75 Beast 5627 | -8/Garrison | Destroyed B-75 Beast 5647 | -8/Garrison | Lost 4 parts (1n3u) 5741 | -8/Garrison | Triggered checkpoint 5779 | -8/Garrison | Triggered checkpoint 6097 | -8/Garrison | Garrison Relay disabled 6163 | -8/Garrison | Discovered new exit (range 10) 6392 | -8/Garrison | Discovered new exit (range 58) 6392 | -8/Garrison | Discovered new exit (range 27) 6392 | -8/Garrison | Discovered new exit (range 36) 6425 | -8/Garrison | Triggered checkpoint 6951 | -8/Garrison | Installed Relay Interface Framework 7009 | -8/Garrison | Triggered checkpoint 7064 | -8/Garrison | Garrison Relay disabled 7153 | -8/Garrison | Triggered checkpoint 7217 | -8/Garrison | Lost 4 parts (1p2u1w) 7381 | -8/Garrison | Triggered checkpoint 7469 | -8/Garrison | Garrison Relay disabled 7601 | -8/Garrison | Triggered checkpoint 7603 | -8/Garrison | Core integrity fell below 50% 7631 | -8/Garrison | Triggered checkpoint 7635 | -8/Garrison | Garrison Relay disabled 8087 | -8/Garrison | Identified exit to Factory 8578 | -8/Garrison | Entered Factory 8578 | -7/Factory | Accompanied by 4 allies 8578 | -7/Factory | Evolved 2 slots: Power x1, Utility x1 8579 | -7/Factory | Identified exit to Lower Caves 8978 | -7/Factory | First assault squad dispatched 9114 | -7/Factory | Lost 3 parts (1p1n1w) 9517 | -7/Factory | Repaired Carbon-fiber Leg 9948 | -7/Factory | Lost 3 allies 9965 | -7/Factory | Core integrity fell below 50% 10047 | -7/Factory | Lost 11 parts (2p5n4u) 10260 | -7/Factory | Discovered new exit (range 12) 10346 | -7/Factory | Build established: Scavenger-Gladiator 10404 | -7/Factory | Garrison activated, responded to threat 10609 | -7/Factory | System corruption reached 10% 11416 | -7/Factory | Entered Lower Caves 11417 | -7/Lower Caves | Encountered a Warlord checkpoint 11592 | -7/Lower Caves | Attracted the attention of an 0b10 outpost 11602 | -7/Lower Caves | Core integrity fell below 20% 11651 | -7/Lower Caves | 1C-UTU showed up to help 11653 | -7/Lower Caves | 1C-UTU revealed a hidden path 11689 | -7/Lower Caves | Build established: Mutant 11734 | -7/Lower Caves | Entered Factory 11734 | -6/Factory | Accompanied by 1 ally 11734 | -6/Factory | Evolved 2 slots: Utility x1, Weapon x1 12314 | -6/Factory | Build established: Hacker-Mutant 12559 | -6/Factory | Lost 6 parts (4n1u1w) 12727 | -6/Factory | Repaired Imp. Deuterium Engine 12821 | -6/Factory | Build established: Mutant 12865 | -6/Factory | Crushed by falling debris 12866 | -6/Factory | System corruption reached 10% 12896 | -6/Factory | Lost 3 parts (1n2u) 12898 | -6/Factory | Crushed by falling debris 12898 | -6/Factory | Core integrity fell below 50% 13105 | -6/Factory | Lost 12 parts (2p8n1u1w) 13196 | -6/Factory | Released all parts (10) 13202 | -6/Factory | Core integrity fell below 20% 13300 | -6/Factory | Discovered new exit (range 12) 13310 | -6/Factory | Entered Extension 14110 | -6/Extension | Disrupted transfer network 14121 | -6/Extension | Rescued a captive Derelict 14125 | -6/Extension | Rescued a captive Derelict 14460 | -6/Extension | Spotted B-75 Beast 14503 | -6/Extension | Destroyed by B-75 Beast with Heavy Machine Gun Last Messages --------------- 14462_ Imp. Heat Sink melted. 14462_ Y-54 Guardian destroyed. 14467_ Y-54 Guardian suffers critical hit (Burn). 14468_ System corrupted: Matter fused (-6). 14476_ Imp. Deuterium Engine melted. 14476_ Y-54 Guardian destroyed. 14476_ Switching to secondary target: B-75 Beast. 14476_ Machine disabled. 14482_ System corrupted: Plasma Rifle failed to cycle. 14482_ Door Terminal disabled. 14484_ 3/&BCJPUF GWWBKIXXPHBLZW 14503_ Triggered Stasis Trap. 14503_ A bubble of rippling energy engulfs the area. 14503_ Field strength at 85. 14503_ Knocked back. 14503_ Triggered Stasis Trap. Map ----- +----------------------------------------------------+ | | | ?????????????????????????????????????????????????? | | ?????????????????????????????????????????????????? | | ????########?????????????????????????????????????? | | ????# #?????????????????????????????????????? | | ##### = #############?????????????????????????? | | *%%+% + #?????????????????????????? | | # ###] ## #?????????????????????????? | | # #?#! ## #?????????????????????????? | | # #?# ## #?????????????????????????? | | #=#?####+#### " =#?????????????????????????? | | # #?????????# %%*####??????????????????????? | | ??? %%!* % !%=#??????????????????????? | | # #???# =###############=#??????????????????????? | | # #???##????????????????# #??????????????????????? | | # #?????????????????????#*#??????????????????????? | | # #?????????????????????#[#??????????????????????? | | T #?????????????????????# #??????????????????????? | | #"#?????????????????????# #??????????????????????? | | ????????????????????????# #??????????????????????? | | ????????????????????????# ###????????????????????? | | ????????????????????????# T"#????????????????????? | | ????????????????????????# ""#????????????????????? | | ????????????????????????#%###????????????????????? | | ????????????????????????#%#??????????????????????? | | ??????????????????????###@#??????????????????????? | | ??????????????????????" ^#??????????????????????? | | ??????????????????????# #^#??????????????????????? | | ??????????????????????###^#??????????????????????? | | ????????????????????????#=#??????????????????????? | | ????????????????????????#!#??????????????????????? | | ????????????????????????#[#??????????????????????? | | ????????????????????????#%#??????????????????????? | | ????????????????????????"!"??????????????????????? | | ????????????????????????"BB??????????????????????? | | ????????????????????????RBB??????????????????????? | | ???????????????????????? ![??????????????????????? | | ???????????????????????? = ??????????????????????? | | ???????????????????????? ??????????????????????? | | ???????????????????????? ??????????????????????? | | ????????????????????????? ??????????????????????? | | ????????????????????????? ??????????????????????? | | ?????????????????????????????????????????????????? | | ?????????????????????????????????????????????????? | | ?????????????????????????????????????????????????? | | ?????????????????????????????????????????????????? | | ?????????????????????????????????????????????????? | | ?????????????????????????????????????????????????? | | ?????????????????????????????????????????????????? | | ?????????????????????????????????????????????????? | +----------------------------------------------------+ Best States ------------- Heat Dissipation 88 Coolant Potential 65 Energy Generation 32 Energy Capacity 480 Matter Stores 300 Matter Capacity 300 Sight Range 20 Terrain Scan Range 16 Terrain Scan Density 210 ECM Strength 1 Armor Coverage 675 Resistance: KI 50 Resistance: TH 35 Resistance: EX 20 Resistance: EM 20 Resistance: I 20 Resistance: S 20 Resistance: P 20 Core Shielding 20 Propulsion Shielding 33 Weapon Cycling 15 Evasion (%) 55 Targeting Accuracy 16 Target Analysis 5 Recoil Reduction 4 Energy Filtering 30 Kinecelleration 30 Force Boost 20 Offensive Hacking 20 Defensive Hacking 10 Item Schematics ----------------- None Robot Schematics ------------------ None Fabricated ------------ Nothing Alien Tech Used ----------------- None Achievements -------------- None Challenges ------------ None Game ------ Seed TargetFactoryNanosword Manual? 0 Play Time 01:20:51 Cumulative 185.8 hours Start 2024.10.16 @ 07:38:45 End 2024.10.16 @ 09:04:10 Sessions 1 Manual Loads 0 Difficulty Adventurer Special Mode None Game No. 220 Rogue 0 Adventurer 220 Explorer 0 Win Type - Total 0 Types 0/0/0/0/0/0/0/0/0 Lore% 59 Gallery% 56 Achievement% 45 Wizard Run 0 Options --------- Layout 2 ASCII 0 Keyboard 0 Movement Mouse Keybinds 0 Fullscreen 2 Font 48/Smallcaps Map View 50x44 Zoom Use 0% Tactical HUD 1 Map Filters NONE Filters NONE Steam 1 RUN: 9f312a86-02e5-4c7e-82a5-b97717c46a2c